bitfinex/quotes_BTCUSD_20250709
["timestamp","ask_amount","ask_price","bid_price","bid_amount"]
[1752030777786,0.64011327,108670.0,108660.0,0.04337195]
[1752030781470,0.63113175,108670.0,108660.0,0.04337195]
[1752030782332,0.32597091,108670.0,108660.0,0.04337195]
[1752030782763,0.63113175,108670.0,108660.0,0.04337195]
[1752030787344,0.32597091,108670.0,108660.0,0.04337195]
[1752030787545,0.63113175,108670.0,108660.0,0.04337354]
[1752030788442,0.63113175,108670.0,108660.0,0.01307354]
[1752030790279,0.64763175,108670.0,108660.0,0.01307354]
[1752030792112,1.06042952,108670.0,108660.0,0.00444]
[1752030792325,1.06042952,108670.0,108660.0,0.01307278]
[1752030792776,0.75526868,108670.0,108660.0,0.01307278]
[1752030796008,0.75526868,108670.0,108660.0,0.00444]
[1752030796176,1.06042952,108670.0,108660.0,0.01306811]
[1752030796585,1.06042952,108670.0,108660.0,0.03032304]
[1752030797399,1.06010744,108670.0,108660.0,0.03032304]
[1752030798355,0.7549466,108670.0,108660.0,0.03032304]
[1752030799372,0.44978576,108670.0,108660.0,0.03032304]
[1752030799570,0.7549466,108670.0,108660.0,0.03032304]
[1752030800978,0.44978576,108670.0,108660.0,0.03032304]
[1752030801331,0.7549466,108670.0,108660.0,0.03032304]
[1752030802544,1.06010744,108670.0,108660.0,0.03032304]
[1752030804671,1.04390744,108670.0,108660.0,0.03032304]
[1752030805819,0.7387466,108670.0,108660.0,0.03032304]
[1752030806937,0.7222466,108670.0,108660.0,0.03032304]
[1752030807584,0.7222466,108670.0,108660.0,0.030318]
[1752030809351,0.41708576,108670.0,108660.0,0.030318]
[1752030809530,0.7222466,108670.0,108660.0,0.030318]
[1752030810377,0.7222466,108670.0,108660.0,0.01306811]
[1752030810699,0.7222466,108670.0,108660.0,0.03031958]
[1752030812326,1.70154375,108670.0,108660.0,0.03031958]
[1752030812548,1.70154375,108670.0,108660.0,0.01306811]
[1752030812549,1.42654944,108670.0,108660.0,0.01306811]
[1752030812727,0.81622776,108670.0,108660.0,0.01306811]
[1752030812934,1.45954411,108670.0,108660.0,0.01306811]
[1752030813156,1.39888744,108670.0,108660.0,0.01306811]
[1752030813412,1.43088171,108670.0,108660.0,0.01206811]
[1752030813805,1.43488171,108670.0,108660.0,0.01206811]
[1752030813958,1.46154171,108670.0,108660.0,0.01106811]
[1752030814165,1.45754171,108670.0,108660.0,0.01106811]
[1752030814449,1.46354171,108670.0,108660.0,0.01206811]
[1752030814601,1.46154171,108670.0,108660.0,0.01106811]
[1752030815018,1.46754171,108670.0,108660.0,0.01206811]
[1752030815369,1.43988171,108670.0,108660.0,0.01206811]
[1752030815575,1.43988171,108670.0,108660.0,0.02932043]
[1752030816179,1.43992171,108670.0,108660.0,0.02932043]
[1752030818293,0.82960003,108670.0,108660.0,0.02932043]
[1752030818443,1.43992171,108670.0,108660.0,0.02932043]
[1752030818860,1.46758171,108670.0,108660.0,0.02069232]
[1752030819069,1.46758171,108670.0,108660.0,0.02931642]
[1752030823660,1.46758171,108670.0,108660.0,0.02010242]
[1752030824116,1.32786171,108670.0,108660.0,0.01088842]
[1752030824337,1.46762171,108670.0,108660.0,0.01088842]
[1752030824577,0.19326321,108660.0,108650.0,0.0255093]
[1752030824806,1.03478182,108660.0,108650.0,0.0255093]
[1752030825799,1.03678182,108660.0,108650.0,0.0255093]
[1752030826978,1.04178182,108660.0,108650.0,0.0255093]
[1752030828641,1.05818182,108660.0,108650.0,0.0255093]
[1752030829055,1.04178182,108660.0,108650.0,0.0255093]
[1752030830214,1.37804266,108660.0,108650.0,0.0255093]
[1752030831253,0.208681,108650.0,108640.0,0.0024]
[1752030831455,1.05015961,108650.0,108640.0,0.0024]
[1752030832078,1.07782461,108650.0,108640.0,0.0024]
[1752030832288,0.42443793,108650.0,108640.0,0.0341]
[1752030832491,0.20295165,108650.0,108640.0,0.0341]
[1752030832729,0.34267165,108650.0,108640.0,0.0341]
[1752030832936,0.3517022,108650.0,108640.0,0.0341]
[1752030833428,0.6957022,108650.0,108640.0,0.0341]
[1752030834027,0.6977022,108650.0,108640.0,0.0341]
[1752030834234,0.5579822,108650.0,108640.0,0.0341]
[1752030834438,0.6977422,108650.0,108640.0,0.0341]
[1752030835384,1.00286304,108650.0,108640.0,0.0341]
[1752030835911,1.00286304,108650.0,108640.0,0.0427154]
[1752030837149,0.86314304,108650.0,108640.0,0.0427154]
[1752030837349,1.00286304,108650.0,108640.0,0.0427154]
[1752030838866,1.00307201,108650.0,108640.0,0.0427154]
[1752030839699,1.09450894,108650.0,108640.0,0.0110154]
[1752030839886,1.11050894,108650.0,108640.0,0.0110154]
[1752030840080,1.09450894,108650.0,108640.0,0.0110154]
[1752030842707,1.11020894,108650.0,108640.0,0.0110154]
[1752030844342,1.13760817,108650.0,108640.0,0.0110154]
[1752030844961,1.12190817,108650.0,108640.0,0.0110154]
[1752030846090,0.81653836,108650.0,108640.0,0.0110154]
[1752030846321,1.12190817,108650.0,108640.0,0.0110154]
[1752030846720,1.12190817,108650.0,108640.0,0.01103203]
[1752030847720,1.13820817,108650.0,108640.0,0.01103203]
[1752030848617,1.12190817,108650.0,108640.0,0.01103203]
[1752030849066,1.12190817,108650.0,108630.0,0.0355889]
[1752030849289,0.02761793,108620.0,108610.0,0.39420373]
[1752030849517,0.06262001,108620.0,108610.0,0.10064384]
[1752030849732,0.05341361,108620.0,108610.0,0.33524831]
[1752030850017,0.06261984,108620.0,108610.0,0.50211037]
[1752030850243,0.24735571,108620.0,108610.0,0.44718954]
[1752030850469,0.24014982,108620.0,108610.0,0.45739671]
[1752030850731,0.24015007,108620.0,108610.0,0.45739671]
[1752030850958,0.24015007,108620.0,108610.0,0.39289155]
[1752030851185,0.24115007,108620.0,108610.0,0.53264639]
[1752030851401,0.24115007,108620.0,108610.0,0.61551639]
[1752030851828,0.24115007,108620.0,108610.0,0.62472313]
[1752030852038,0.24115007,108620.0,108610.0,0.48651746]
[1752030852260,0.24115007,108620.0,108610.0,0.51831746]
[1752030852452,0.24115007,108620.0,108610.0,0.60118746]
[1752030853083,0.24115007,108620.0,108610.0,0.43024206]
[1752030853260,0.24115007,108620.0,108610.0,0.61435688]
[1752030853921,0.24115007,108620.0,108610.0,0.25902276]
[1752030854129,0.24115007,108620.0,108610.0,0.58280622]
[1752030854340,0.23194418,108620.0,108610.0,0.58280665]
[1752030854952,0.23194453,108620.0,108610.0,0.43905218]
[1752030855155,0.23194453,108620.0,108610.0,0.44825901]
[1752030855985,0.0478163,108620.0,108610.0,0.35673831]
[1752030856193,0.23194445,108620.0,108610.0,0.53164639]
[1752030856408,0.21996492,108620.0,108610.0,0.53164639]
[1752030856608,0.21996492,108620.0,108610.0,0.52243956]
[1752030856813,0.21996492,108620.0,108610.0,0.50032351]
[1752030857022,0.21996492,108620.0,108610.0,0.13802391]
[1752030857226,0.21996492,108620.0,108610.0,0.44339372]
[1752030857430,0.21996492,108620.0,108610.0,0.44339381]
[1752030857639,0.21996492,108620.0,108610.0,0.12881683]
[1752030857941,0.21996492,108620.0,108600.0,0.55806474]
[1752030857942,0.01841408,108610.0,108600.0,0.55806474]
[1752030858146,0.0146468,108610.0,108600.0,0.67376524]
[1752030858349,0.02385405,108610.0,108600.0,0.36839543]
[1752030858832,0.02385405,108610.0,108600.0,1.00270684]
[1752030858996,0.03306122,108610.0,108600.0,0.81128945]
[1752030859205,0.22688015,108610.0,108600.0,0.94168212]
[1752030859446,0.2029201,108610.0,108600.0,0.94168212]
[1752030859708,0.2029201,108610.0,108600.0,1.13502192]
[1752030859957,0.2029201,108610.0,108600.0,1.13474399]
[1752030860188,0.2039201,108610.0,108600.0,1.07023615]
[1752030860391,0.2059201,108610.0,108600.0,0.76486634]
[1752030860600,0.2059201,108610.0,108600.0,1.07944374]
[1752030860802,0.21512735,108610.0,108600.0,1.07944374]
[1752030861008,0.22433435,108610.0,108600.0,1.00019042]
[1752030861216,0.22433435,108610.0,108600.0,0.67989773]
[1752030861401,0.030982,108610.0,108600.0,0.69831307]
[1752030861630,0.030982,108610.0,108600.0,0.39294326]
[1752030862008,0.04018925,108610.0,108600.0,0.32843474]
[1752030862438,0.0282091,108610.0,108600.0,0.63380455]
[1752030862772,0.0282091,108610.0,108600.0,0.54428555]
[1752030863002,0.03741627,108610.0,108600.0,0.61933701]
[1752030863188,0.03741627,108610.0,108600.0,0.47977701]
[1752030863392,0.02820902,108610.0,108600.0,0.62854477]
[1752030863619,0.02188049,108610.0,108600.0,0.32306163]
[1752030863880,0.02188049,108610.0,108600.0,0.88795013]
[1752030864099,0.02188049,108610.0,108600.0,0.82913741]
[1752030864347,0.02762014,108610.0,108600.0,1.01326954]
[1752030864804,0.03682382,108620.0,108610.0,0.2227965]
[1752030865059,0.04603014,108620.0,108610.0,0.49000466]
[1752030865289,0.03682382,108620.0,108610.0,0.48150466]
[1752030865530,0.03682382,108620.0,108610.0,0.49071191]
[1752030865762,0.04603014,108620.0,108610.0,0.49071191]
[1752030865995,0.04703014,108620.0,108610.0,0.49071191]
[1752030866247,0.04803014,108620.0,108610.0,0.42820499]
[1752030866929,0.04803082,108620.0,108610.0,0.31220653]
[1752030867132,0.04803082,108620.0,108610.0,0.43184424]
[1752030867624,0.04803082,108620.0,108610.0,0.1841451]
[1752030867807,0.22295316,108620.0,108610.0,0.51026486]
[1752030868017,0.22295316,108620.0,108610.0,0.51716996]
[1752030868225,0.2137471,108620.0,108610.0,0.45266209]
[1752030868486,0.2017669,108620.0,108610.0,0.46186892]
[1752030868987,0.01763858,108620.0,108610.0,0.47107507]
[1752030869184,0.20176673,108620.0,108610.0,0.47640926]
[1752030870051,0.01763858,108620.0,108610.0,0.48561592]
[1752030870265,0.20176673,108620.0,108610.0,0.17100556]
[1752030870484,0.02041221,108620.0,108610.0,0.48791773]
[1752030870705,0.002,108620.0,108610.0,0.49501592]
[1752030870927,0.0204117,108620.0,108610.0,0.49501592]
[1752030871132,0.02961785,108620.0,108610.0,0.49411592]
[1752030871362,0.0204117,108620.0,108610.0,0.63371592]
[1752030872542,0.0204117,108620.0,108610.0,0.62521592]
[1752030872737,0.02041161,108620.0,108610.0,0.62521592]
[1752030873329,0.02961759,108620.0,108610.0,0.62521592]
[1752030873963,0.03882365,108620.0,108610.0,0.62521592]
[1752030874802,0.05422365,108620.0,108610.0,0.62521592]
[1752030875013,0.06342988,108620.0,108610.0,0.62521592]
[1752030875395,0.05422365,108620.0,108610.0,0.62521592]
[1752030876830,0.03882365,108620.0,108610.0,0.62521592]
[1752030877038,0.02961759,108620.0,108610.0,0.62521592]
[1752030877424,0.03882374,108620.0,108610.0,0.62521592]
[1752030877658,0.03882365,108620.0,108610.0,0.62521592]
[1752030878089,0.03882365,108620.0,108610.0,0.73556532]
[1752030878521,0.05462365,108620.0,108610.0,0.73556532]
[1752030879402,0.06382988,108620.0,108610.0,0.73556532]
[1752030880060,0.0810339,108620.0,108610.0,0.72450698]
[1752030880290,0.08103382,108620.0,108610.0,0.72450698]
[1752030880992,0.08103382,108620.0,108610.0,0.71344864]
[1752030881941,0.07182767,108620.0,108610.0,0.71344864]
[1752030883767,0.07182767,108620.0,108610.0,0.40804494]
[1752030884734,0.0810339,108620.0,108610.0,0.40804494]
[1752030884941,0.09643382,108620.0,108610.0,0.40804494]
[1752030885174,0.07802161,108620.0,108610.0,0.40804494]
[1752030885994,0.07802161,108620.0,108610.0,0.38592825]
[1752030886384,0.08722776,108620.0,108610.0,0.38592825]
[1752030886599,0.08722776,108620.0,108610.0,0.3713874]
[1752030887153,0.07002374,108620.0,108610.0,0.38866133]
[1752030887362,0.0368487,108620.0,108610.0,0.27831193]
[1752030887566,0.0368487,108620.0,108610.0,0.42182715]
[1752030887792,0.04605493,108620.0,108610.0,0.42182715]
[1752030888019,0.23938906,108620.0,108610.0,0.37579301]
[1752030888270,0.60009636,108620.0,108610.0,0.05043975]
[1752030888497,0.73969636,108620.0,108610.0,0.05043975]
[1752030888948,1.04531246,108620.0,108610.0,0.05043975]
[1752030889649,0.73980256,108620.0,108610.0,0.05043975]
[1752030890086,0.72874382,108620.0,108610.0,0.05043975]
[1752030890955,0.42323392,108620.0,108610.0,0.05043975]
[1752030891187,0.6439471,108620.0,108610.0,0.05043975]
[1752030892733,0.6439471,108620.0,108610.0,0.05043933]
[1752030893995,0.6595471,108620.0,108610.0,0.13334856]
[1752030896198,0.75098403,108620.0,108610.0,0.13334856]
[1752030897111,1.16469976,108620.0,108610.0,0.12413273]
[1752030897365,1.16469976,108620.0,108610.0,0.0964779]
[1752030897614,1.16469976,108620.0,108610.0,0.08726207]
[1752030898099,1.16469976,108620.0,108610.0,0.12869444]
[1752030898305,1.16569976,108620.0,108610.0,0.13069444]
[1752030899293,1.16569976,108620.0,108610.0,0.12869444]
[1752030899294,1.16469976,108620.0,108610.0,0.12869444]
[1752030899658,1.16669976,108620.0,108610.0,0.06070588]
[1752030899867,1.16569976,108620.0,108610.0,0.05970588]
[1752030899999,1.15496853,108620.0,108610.0,0.05970588]
[1752030900698,1.15496853,108620.0,108610.0,0.01827351]
[1752030901070,1.46045625,108620.0,108610.0,0.00905523]
[1752030901469,1.18264253,108620.0,108610.0,0.00905523]
[1752030901673,0.20885218,108610.0,108600.0,0.09668677]
[1752030901880,1.25126455,108610.0,108600.0,0.04143237]
[1752030902751,1.25226455,108610.0,108600.0,0.04143237]
[1752030902985,1.26806455,108610.0,108600.0,0.04143237]
[1752030903423,1.27006455,108610.0,108600.0,0.04143237]
[1752030904256,1.26806455,108610.0,108600.0,0.04143237]
[1752030904471,0.22496999,108600.0,108590.0,0.09712677]
[1752030904698,0.90137464,108600.0,108590.0,0.09712677]
[1752030905536,0.90137464,108600.0,108590.0,0.04187237]
[1752030905759,0.90237464,108600.0,108590.0,0.04187237]
[1752030906379,1.20786236,108600.0,108590.0,0.04187237]
[1752030906583,1.20786236,108600.0,108590.0,0.00044]
[1752030908974,1.20986236,108600.0,108590.0,0.00044]
[1752030911037,1.18773694,108600.0,108590.0,0.00044]
[1752030911244,1.19694487,108600.0,108590.0,0.00044]
[1752030912531,1.21302959,108600.0,108590.0,0.00044]
[1752030913670,1.21302959,108600.0,108590.0,0.01764772]
[1752030914301,0.60205415,108600.0,108590.0,0.01764772]
[1752030914510,1.21302959,108600.0,108590.0,0.01764772]
[1752030918210,0.90754187,108600.0,108590.0,0.01764772]
[1752030918430,1.21302959,108600.0,108590.0,0.01764772]
[1752030919084,0.60205415,108600.0,108590.0,0.01764772]
[1752030919239,1.21302959,108600.0,108590.0,0.01764772]
[1752030921012,0.60205415,108600.0,108590.0,0.01764772]
[1752030921216,1.21302959,108600.0,108590.0,0.01764772]
[1752030923043,1.21345591,108600.0,108590.0,0.01764772]
[1752030923950,1.51915679,108600.0,108590.0,0.01764772]
[1752030924177,1.21345591,108600.0,108590.0,0.01764772]
[1752030925357,1.88683179,108600.0,108590.0,0.01764772]
[1752030925558,1.85915679,108600.0,108590.0,0.01764772]
[1752030925781,1.88683179,108600.0,108590.0,0.01764772]
[1752030926273,2.81847528,108600.0,108590.0,1e-08]
[1752030926502,0.1933878,108590.0,108580.0,0.0072693]
[1752030926716,1.51348737,108590.0,108580.0,0.0072693]
[1752030926934,0.5334056,108580.0,108570.0,0.00140069]
[1752030927173,1.54821789,108580.0,108570.0,0.00140069]
[1752030927384,1.24235021,108580.0,108570.0,0.00140069]
[1752030927536,1.54821789,108580.0,108570.0,0.00140069]
[1752030927738,1.24235021,108580.0,108570.0,0.00140069]
[1752030928274,1.29845288,108580.0,108570.0,0.00140069]
[1752030928853,1.60432056,108580.0,108570.0,0.00140069]
[1752030929500,1.29845288,108580.0,108570.0,0.00140069]
[1752030930182,1.60432056,108580.0,108570.0,0.00140069]
[1752030931458,0.9925852,108580.0,108570.0,0.00140069]
[1752030931660,1.60932056,108580.0,108570.0,0.00140069]
[1752030933345,0.9975852,108580.0,108570.0,0.00140069]
[1752030933803,1.60932056,108580.0,108570.0,0.00140069]
[1752030934033,1.17785878,108570.0,108560.0,0.0066459]
[1752030934245,1.55397571,108570.0,108560.0,0.0066459]
[1752030934648,0.19344123,108560.0,108550.0,0.04217237]
[1752030934870,1.24812584,108560.0,108550.0,0.04217237]
[1752030935323,0.96994316,108560.0,108550.0,0.04217237]
[1752030935536,1.27581084,108560.0,108550.0,0.00935839]
[1752030936381,0.93488815,108560.0,108550.0,0.00935839]
[1752030936530,1.24075583,108560.0,108550.0,0.00935839]
[1752030936941,0.93488815,108560.0,108550.0,0.00935839]
[1752030937120,1.24175583,108560.0,108550.0,0.00935839]
[1752030937532,1.24475583,108560.0,108550.0,0.00935839]
[1752030938333,0.93888815,108560.0,108550.0,0.00935839]
[1752030938538,1.24475583,108560.0,108550.0,0.02658179]
[1752030939385,1.24475583,108560.0,108550.0,0.02657354]
[1752030940221,0.93888815,108560.0,108550.0,0.02657354]
[1752030940445,1.24475583,108560.0,108550.0,0.02657354]
[1752030941472,0.93888815,108560.0,108550.0,0.02657354]
[1752030941677,1.24475583,108560.0,108550.0,0.02657354]
[1752030944331,0.65420815,108560.0,108550.0,0.02657354]
[1752030944550,0.60858449,108560.0,108550.0,0.02657354]
[1752030944769,0.60858449,108560.0,108550.0,0.05877354]
[1752030944770,0.71460825,108560.0,108550.0,0.05877354]
[1752030944987,0.71460825,108560.0,108550.0,0.03294]
[1752030945221,0.71460825,108560.0,108550.0,0.0501431]
[1752030945488,0.71460825,108560.0,108550.0,0.0336431]
[1752030946158,0.57168825,108560.0,108550.0,0.0487431]
[1752030946400,0.60103828,108560.0,108550.0,0.05795544]
[1752030946618,0.60103828,108560.0,108550.0,0.0487431]
[1752030947033,0.02242188,108560.0,108550.0,0.55728209]
[1752030947244,0.01321081,108560.0,108550.0,0.57570584]
[1752030947451,0.16546205,108560.0,108550.0,0.57570584]
[1752030947661,0.1562509,108560.0,108550.0,0.57570584]
[1752030947878,0.004,108560.0,108550.0,0.26983816]
[1752030948095,0.004,108560.0,108550.0,0.57570584]
[1752030948311,0.001,108560.0,108550.0,0.76382954]
[1752030948521,0.001,108560.0,108550.0,0.43107034]
[1752030948761,0.003,108560.0,108550.0,0.77824305]
[1752030948981,0.002,108560.0,108550.0,0.47237537]
[1752030949204,0.002,108560.0,108550.0,0.77824305]
[1752030949418,0.003,108560.0,108550.0,0.68268362]
[1752030950736,0.001,108560.0,108550.0,0.66548052]
[1752030950944,0.001,108560.0,108550.0,0.85182866]
[1752030950945,0.0102109,108560.0,108550.0,0.85182866]
[1752030951172,0.002,108560.0,108550.0,0.81052052]
[1752030951378,0.01121081,108560.0,108550.0,0.85182866]
[1752030952006,0.01121081,108560.0,108550.0,0.81052052]
[1752030952415,0.0296332,108560.0,108550.0,0.34707199]
[1752030952655,0.02042188,108560.0,108550.0,0.49011199]
[1752030952857,0.01942188,108560.0,108550.0,0.48911199]
[1752030953477,0.01942179,108560.0,108550.0,0.79497967]
[1752030953602,0.02863303,108560.0,108550.0,0.79497967]
[1752030953821,0.01942179,108560.0,108550.0,0.79497967]
[1752030954223,0.02042171,108560.0,108550.0,0.49211199]
[1752030954427,0.02963269,108560.0,108550.0,0.79797967]
[1752030955056,0.03884384,108560.0,108550.0,0.79797967]
[1752030955468,0.03884376,108560.0,108550.0,0.79797967]
[1752030955640,0.03884376,108560.0,108550.0,0.49211199]
[1752030955843,0.03884376,108560.0,108550.0,0.79797967]
[1752030956046,0.048055,108560.0,108550.0,0.9361433]
[1752030956249,0.03884376,108560.0,108550.0,0.9361433]
[1752030956858,0.03884376,108560.0,108550.0,0.63027562]
[1752030958101,0.048055,108560.0,108550.0,0.63027562]
[1752030958483,0.03884376,108560.0,108550.0,0.63027562]
[1752030958874,0.048055,108560.0,108550.0,0.63027562]
[1752030959076,0.04805568,108560.0,108550.0,0.18391597]
[1752030959222,0.21386371,108560.0,108550.0,0.33736286]
[1752030959436,0.51973139,108560.0,108550.0,0.48941511]
[1752030959769,0.20465264,108560.0,108550.0,0.2038344]
[1752030960634,0.22065264,108560.0,108550.0,0.2038344]
[1752030963125,0.20465264,108560.0,108550.0,0.39729346]
[1752030963324,0.20465264,108560.0,108550.0,0.39729363]
[1752030963528,0.20465264,108560.0,108550.0,0.4065058]
[1752030963739,0.20465264,108560.0,108550.0,0.40650588]
[1752030963942,0.20465264,108560.0,108550.0,0.41571805]
[1752030964210,0.20465264,108560.0,108550.0,0.40650588]
[1752030964470,0.20465264,108560.0,108550.0,0.41571805]
[1752030964667,0.20465264,108560.0,108550.0,0.40650588]
[1752030965428,0.1954414,108560.0,108550.0,0.39729363]
[1752030965635,0.1954414,108560.0,108550.0,0.40650588]
[1752030967322,0.1954414,108560.0,108550.0,0.41571805]
[1752030967731,0.1954414,108560.0,108550.0,0.42493013]
[1752030967960,0.20465264,108560.0,108550.0,0.43414213]
[1752030968379,0.20465264,108560.0,108550.0,0.42493013]
[1752030968593,0.1954414,108560.0,108550.0,0.41571805]
[1752030969059,0.1954414,108560.0,108550.0,0.42493013]
[1752030970088,0.1954414,108560.0,108550.0,0.50783936]
[1752030971197,0.1954414,108560.0,108550.0,0.42493013]
[1752030971619,0.1954414,108560.0,108550.0,0.50783936]
[1752030972482,0.1954414,108560.0,108550.0,0.49862728]
[1752030974641,0.1954414,108560.0,108550.0,0.50783936]
[1752030974844,0.1954414,108560.0,108550.0,0.51705136]
[1752030975012,0.1954414,108560.0,108550.0,0.50783936]
[1752030975629,0.1954414,108560.0,108550.0,0.51705136]
[1752030976510,0.1954414,108560.0,108550.0,0.46179696]
[1752030976737,0.1954414,108560.0,108550.0,0.46179654]
[1752030978216,0.002,108560.0,108550.0,0.78306372]
[1752030978443,0.002,108560.0,108550.0,0.9042415]
[1752030980345,0.01121081,108560.0,108550.0,0.9040118]
[1752030980464,0.01121081,108560.0,108550.0,0.82110257]
[1752030982102,0.01121081,108560.0,108550.0,0.93145197]
[1752030982682,0.02042179,108560.0,108550.0,0.93145197]
[1752030982838,0.01121081,108560.0,108550.0,0.93145197]
[1752030983051,0.02042179,108560.0,108550.0,0.93145197]
[1752030983703,0.01121081,108560.0,108550.0,0.93145197]
[1752030984484,0.002,108560.0,108550.0,0.93145197]
[1752030985454,0.01121073,108560.0,108550.0,0.93145197]
[1752030985662,0.002,108560.0,108550.0,0.93145197]
[1752030992389,0.002,108560.0,108550.0,0.62558429]
[1752030992600,0.002,108560.0,108550.0,0.93145197]
[1752030995497,0.002,108560.0,108550.0,0.91625197]
[1752030998460,0.01121073,108560.0,108550.0,0.91625197]
[1752030998870,0.002,108560.0,108550.0,0.91625197]
[1752030999086,0.002,108560.0,108550.0,0.45214429]
[1752030999299,0.24466328,108560.0,108550.0,0.30010659]
[1752030999510,0.5413204,108560.0,108550.0,0.1158597]
[1752030999719,0.5413204,108560.0,108550.0,0.2581797]
[1752030999930,0.61503613,108560.0,108550.0,0.1158597]
[1752031000149,0.61503613,108560.0,108550.0,0.08842783]
[1752031000998,0.61503613,108560.0,108550.0,0.14370863]
[1752031001663,0.61303613,108560.0,108550.0,0.13870863]
[1752031001873,0.61503613,108560.0,108550.0,0.0567911]
[1752031002346,0.61503613,108560.0,108550.0,0.09823465]
[1752031003205,0.61603613,108560.0,108550.0,0.10023465]
[1752031003412,0.70747306,108560.0,108550.0,0.10023465]
[1752031003838,0.63375733,108560.0,108550.0,0.10023465]
[1752031007410,0.63375733,108560.0,108550.0,0.04495385]
[1752031007617,0.63375733,108560.0,108550.0,0.10023465]
[1752031007829,0.5423204,108560.0,108550.0,0.10023465]
[1752031008041,0.0614332,108560.0,108550.0,0.31211813]
[1752031008248,0.17886205,108560.0,108550.0,0.58575401]
[1752031008456,0.17886197,108560.0,108550.0,0.36280386]
[1752031008587,0.0272109,108560.0,108550.0,0.36280386]
[1752031008793,0.18807303,108560.0,108550.0,0.36280386]
[1752031009142,0.20649559,108560.0,108550.0,0.36280386]
[1752031009761,0.20653559,108560.0,108550.0,0.36280386]
[1752031010324,0.05484427,108560.0,108550.0,0.36280386]
[1752031010522,0.18811303,108560.0,108550.0,0.36280386]
[1752031010728,0.18807303,108560.0,108550.0,0.36280386]
[1752031011375,0.03063295,108560.0,108550.0,0.36280386]
[1752031011600,0.03984427,108560.0,108550.0,0.36280386]
[1752031012013,0.05564427,108560.0,108550.0,0.36280386]
[1752031012759,0.04643295,108560.0,108550.0,0.36280386]
[1752031012967,0.0556441,108560.0,108550.0,0.36280386]
[1752031014797,0.06485542,108560.0,108550.0,0.36280386]
[1752031015022,0.06485534,108560.0,108550.0,0.36280386]
[1752031015436,0.0556441,108560.0,108550.0,0.36280386]
[1752031016624,0.04643295,108560.0,108550.0,0.36280386]
[1752031017051,0.05564427,108560.0,108550.0,0.36280386]
[1752031017455,0.05564419,108560.0,108550.0,0.36280386]
[1752031017704,0.06485551,108560.0,108550.0,0.36280386]
[1752031017946,0.05564419,108560.0,108550.0,0.36280386]
[1752031018163,0.56224271,108560.0,108550.0,0.35359219]
[1752031018401,0.56224271,108560.0,108550.0,0.36280419]
[1752031018613,0.55303164,108560.0,108550.0,0.35359219]
[1752031019060,0.55303164,108560.0,108550.0,0.36280419]
[1752031019267,0.55303164,108560.0,108550.0,0.37201611]
[1752031020703,0.35959024,108560.0,108550.0,0.37201552]
[1752031021806,0.36880165,108560.0,108550.0,0.37201552]
[1752031022904,0.37801314,108560.0,108550.0,0.37201552]
[1752031023209,0.56224305,108560.0,108550.0,0.36280377]
[1752031023646,0.25637537,108560.0,108550.0,0.36280377]
[1752031023855,0.56224305,108560.0,108550.0,0.3720156]
[1752031024728,0.56224305,108560.0,108550.0,0.36280377]
[1752031024931,0.55303181,108560.0,108550.0,0.35359185]
[1752031025142,0.53460908,108560.0,108550.0,0.34437985]
[1752031025366,0.53460908,108560.0,108550.0,0.28909905]
[1752031025515,0.53460908,108560.0,108550.0,0.34433571]
[1752031025718,0.53460908,108560.0,108550.0,0.35354763]
[1752031026068,0.53460908,108560.0,108550.0,0.34433568]
[1752031026276,0.53460908,108560.0,108550.0,0.3443424]
[1752031026518,0.53460908,108560.0,108550.0,0.28909905]
[1752031027119,0.53460908,108560.0,108550.0,0.27988697]
[1752031027623,0.53460908,108560.0,108550.0,0.33513794]
[1752031027844,0.53460908,108560.0,108550.0,0.28909914]
[1752031028077,0.53460908,108560.0,108550.0,0.3443499]
[1752031028266,0.53460908,108560.0,108550.0,0.28909914]
[1752031029885,0.53460908,108560.0,108550.0,0.29831122]
[1752031032072,0.53460908,108560.0,108550.0,0.30752322]
[1752031032504,0.53460908,108560.0,108550.0,0.31673514]
[1752031032737,0.53460908,108560.0,108550.0,0.31593114]
[1752031032992,0.53460908,108560.0,108550.0,0.30671922]
[1752031033412,0.53460908,108560.0,108550.0,0.28829514]
[1752031035442,0.52539759,108560.0,108550.0,0.28829514]
[1752031038983,0.17926205,108560.0,108550.0,0.31593097]
[1752031039355,0.18188453,108560.0,108550.0,0.31593105]
[1752031039527,0.19738453,108560.0,108550.0,0.31593055]
[1752031040525,0.39082593,108560.0,108550.0,0.3067188]
[1752031040687,0.02771081,108560.0,108550.0,0.40736748]
[1752031040891,0.17263278,108560.0,108550.0,0.40736748]
[1752031041336,0.17263269,108560.0,108550.0,0.40736748]
[1752031041628,0.16342171,108560.0,108550.0,0.40736748]
[1752031041769,0.17263278,108560.0,108550.0,0.40736748]
[1752031042273,0.18184393,108560.0,108550.0,0.40736748]
[1752031043128,0.17263278,108560.0,108550.0,0.40736748]
[1752031043546,0.003,108560.0,108550.0,0.40736748]
[1752031043773,0.15413081,108560.0,108550.0,0.40736748]
[1752031043980,0.16334171,108560.0,108550.0,0.40736748]
[1752031044216,0.17255278,108560.0,108550.0,0.32444995]
[1752031044416,0.17255269,108560.0,108550.0,0.32444995]
[1752031044970,0.18176384,108560.0,108550.0,0.40742106]
[1752031045422,0.18176376,108560.0,108550.0,0.40742106]
[1752031047147,0.190975,108560.0,108550.0,0.40742106]
[1752031047780,0.18176376,108560.0,108550.0,0.40742106]
[1752031047952,0.190975,108560.0,108550.0,0.40742106]
[1752031048377,0.18176376,108560.0,108550.0,0.40742106]
[1752031048573,0.18176384,108560.0,108550.0,0.40742106]
[1752031049183,0.003,108560.0,108550.0,0.72782959]
[1752031049394,0.14476,108560.0,108550.0,0.65995848]
[1752031049606,0.14476,108560.0,108550.0,0.3540908]
[1752031050121,0.14476,108560.0,108550.0,0.4644402]
[1752031050859,0.003,108560.0,108550.0,0.4644402]
[1752031051275,0.003,108560.0,108550.0,0.78600788]
[1752031051927,0.003,108560.0,108550.0,0.67565848]
[1752031052156,0.003,108560.0,108550.0,0.80347966]
[1752031052604,0.001,108560.0,108550.0,0.80277336]
[1752031052819,0.002,108560.0,108550.0,0.80477336]
[1752031053040,0.001,108560.0,108550.0,0.80277336]
[1752031053470,0.002,108560.0,108550.0,0.80477336]
[1752031055194,0.002,108560.0,108550.0,0.80476279]
[1752031055427,0.002,108560.0,108550.0,0.60965511]
[1752031057586,0.0182,108560.0,108550.0,0.60965511]
[1752031057813,0.0182,108560.0,108550.0,0.60965062]
[1752031058642,0.0182,108560.0,108550.0,0.60957062]
[1752031059083,0.0182,108560.0,108550.0,0.60953062]
[1752031060984,0.0282,108560.0,108550.0,0.60953062]
[1752031062874,0.0282,108560.0,108550.0,0.91528336]
[1752031065728,0.0282,108560.0,108550.0,0.91527802]
[1752031067517,0.0282,108560.0,108550.0,0.60952528]
[1752031067738,0.35237453,108560.0,108550.0,0.46808528]
[1752031067945,0.37788577,108560.0,108550.0,0.60932528]
[1752031068117,0.38709709,108560.0,108550.0,0.60932528]
[1752031068465,0.08134435,108560.0,108550.0,0.60932528]